{"text_format":"3","workbook":"xlsx","n_sheets":3,"sheets":["SUMMARY","PART 1","PART 2"],"not_rendered":{"images":1,"defined_names":5},"read":"whole","date_system":"1900"}

{"sheet":"SUMMARY","index":0,"n_rows":150,"n_cols":9,"rows_kept":150,"merged":[[0,1,0,9],[2,1,2,9],[3,2,5,2],[5,8,5,9],[6,8,6,9],[12,1,12,9],[13,4,13,5],[14,1,14,9],[29,5,29,6],[31,1,31,6],[33,1,33,6],[35,1,35,6],[36,1,36,6],[37,1,37,6],[42,3,42,9],[42,11,42,19],[43,11,43,15],[44,11,44,15],[45,3,45,9],[45,11,45,15],[47,3,47,9],[47,11,47,15],[48,3,48,9],[48,11,48,15],[49,3,49,9],[49,11,49,15],[50,11,50,15],[52,2,52,6],[52,11,52,29],[53,11,53,15],[54,2,54,6],[54,11,54,15],[55,2,55,6],[55,11,55,15],[64,2,64,5],[74,2,74,5],[75,2,75,5],[77,1,77,6],[79,1,79,6],[94,5,94,6],[98,1,98,6],[99,1,99,6],[100,1,100,6],[101,1,101,6],[110,2,110,6],[111,2,111,6],[114,2,114,5],[125,2,125,5],[126,2,126,5],[129,3,129,4],[129,5,129,7],[130,3,130,4],[130,5,130,7],[133,2,133,7],[135,2,135,7],[137,2,137,7],[140,3,140,7]]}
[null,"NELSON MANDELA PRISON HOUSE"]
[]
[]
[]
[]
[{"$nulls":8},"REVISION 1"]
[{"$nulls":8},"2026.07.14"]
[{"$nulls":7},"TEL:","+27(0) 12 667 2780"]
[{"$nulls":7},"E MAIL:","theo@insitegroup.co.za"]
[{"$nulls":8},"nolwazi@insitegroup.co.za"]
[{"$nulls":7},"CONTACT PERSON:","Theo & Nolwazi"]
[]
[null,{"$f":"B1","v":"NELSON MANDELA PRISON HOUSE"}]
[]
[null,"BILL OF QUANTITIES - SOFT- AND HARD LANDSCAPING (Part 1 & Part 2)"]
[]
[]
[]
[null,"CONTRACTORS COMPANY NAME",{"$nulls":4},"SIGNATURE"]
[null,"Contact person"]
[]
[]
[]
[null,"CONTRACT VALUE EXCLUDING VAT (NUMBERS)",{"$nulls":4},"SIGNATURE"]
[]
[]
[]
[null,"CONTRACT VALUE EXCLUDING VAT (IN WORDS)",{"$nulls":4},"SIGNATURE"]
[]
[null,"NOTES TO THE TENDERER"]
[]
[null,"A BRIEFING SESSION FOR THIS TENDER ON 21 JULY 2026,  THIS IS NOT COMPULSORY BUT IS HIGHLY ADVISABLE."]
[]
[null,"THE NELSON MANDELA PRISON HOUSE IS PART OF THE IZIKO MUSEUMS OF SOUTH AFRCA COMPLEX.  THE SITE IS A GRADE I NATIONAL HERITAGE SITE.  ALL WORK MUST BE UNDERTAKEN WITH THE APPROPRIATE DUTY OF CARE AS PRESCRIBED BY THE NATIONAL HERITAGE RESOURCES ACT NO. 25 OF 1999,  THIS SCOPE REQUIRES A SAHRA PERMIT, WHICH HAS BEEN OBTAINED.  ALL ACTIVITIES MUST THEREFORE BE CONDUCTED WITH HEIGHTENED CAUTION, SENSITIVITY, RESPECT FOR THE SURROUNDING HERITAGE ENVIRONMENT, AND IN LINE WITH THE PERMIT INSTRUCTIONS."]
[]
[null,"IT IS THE CONTRACTOR'S RESPONSIBILITY TO FAMILIARISE HIM/HERSELF WITH THE ALIGNMENT OF THE UNDERGROUND SERVICES AND TO TAKE THE NECESSARY PRECAUTIONS NOT TO DAMAGE ANY OF THE UNDERGROUND SERVICES."]
[]
[null,"TENDER RATES MUST BE COMPLETED TO ALLOW FOR ANY PART OR QUANTITIES TO BE REMOVED OR SIGNIFICANTLY REDUCED."]
[]
[null,"This Schedule of Quantities should be read in conjunction with the following drawings and documents:"]
[null,null,"DRAWING NUMBER","DRAWING NAME"]
[null,null,"PART 1: INTERNAL HOUSE GARDEN - SOFT AND HARD LANDSCAPING "]
[null,"*","IS-3758-601","PART 1: INTERNAL HOUSE GARDEN LANDSCAPE SKETCHPLAN "]
[null,"*","IS-3758-605","PART 1: INTERNAL HOUSE GARDEN RAMP 1 DETAIL"]
[null,"*","IS-3758-606","PART 1: INTERNAL HOUSE GARDEN RAMP 2 DETAIL"]
[null,"*","IS-3758-607","PART 1: INTERNAL HOUSE GARDEN RAMP 3 DETAIL"]
[null,null,"PART 2: GROUNDS UPGRADE - CIVIL AND EXTERNAL WORKS"]
[null,"*","IS-3758-602","PART 2: EXTERNAL GROUND UPGRADE HARD LANDSCAPE SKETCHPLAN "]
[null,"*","IS-3758-603","PART 2: EXTERNAL GROUND UPGRADE DRINKING FOUNTAIN DETAIL "]
[null,"*","IS-3758-604","PART 2: EXTERNAL GROUND UPGRADE SOFT LANDSCAPE SKETCHPLAN "]
[]
[null,null,"DOCUMENT NAME"]
[null,"*","Drawing Register"]
[null,"*","Provisional Bill of Quantities"]
[null,"*","Site Pin"]
[null,"*","General Landscape Specifications"]
[null,"*","General Specification for Exposed Aggregate Concrete Paving"]
[null,"*","Artevia Exposed Data Sheet"]
[null,"*","Chryso Devo Lav P Data Sheet"]
[null,"*","SABS 1200 MJ - 1984"]
[null,"*","SANS 10400-S:2025 Edition 4 (Refer to page 30: 7 Vertical travel)"]
[null,"*","Step-By-Step Guide to Perfect Paving"]
[]
[null,null,"IMPORTANT NOTES: "]
[null,null,"The lowest tender will not necessary be accepted. Tender rates must be completed to allow for any part or quantities to be removed or significantly reduced, where so required."]
[]
[null,null,"A BRIEFING SESSION FOR THIS TENDER ON (insert date),  THIS IS NOT COMPULSORY BUT IS HIGHLY ADVISABLE.\nQuestions or Clarifications can be sent to: ndonson@iziko.org.za; smadlavu@iziko.org.za & aarendse@iziko.org.za"]
[]
[null,null,"TENDER CLOSE: "]
[null,null,"Date: (insert date)"]
[]
[null,null,"Site Address: "]
[null,null,"See Site Pin under Documents (Paarl Region) - Drakenstein Prison, R 301, Paarl Western Cape"]
[]
[null,null,"Commencement of Landscape construction: (To be confirmed with Main contractor based on programme)"]
[null,null,"Completion date: TBC"]
[]
[null,"SUMMARY PAGE"]
[null,"NOTE: Contractor to forward all Total amounts into the Summary below."]
[]
[]
[]
[]
[null,"CONTRACTORS COMPANY NAME",{"$nulls":4},"SIGNATURE"]
[null,"Contact person"]
[]
[]
[]
[null,"CONTRACT VALUE EXCLUDING VAT (NUMBERS)",{"$nulls":4},"SIGNATURE"]
[]
[]
[]
[null,"CONTRACT VALUE EXCLUDING VAT (IN WORDS)",{"$nulls":4},"SIGNATURE"]
[]
[null,"NOTES TO THE TENDERER"]
[]
[null,"SITE VISIT TO BE DONE BY CONTRACTOR BEFORE HANDING IN THIS DOCUMENT."]
[]
[null,"IT IS THE CONTRACTOR'S RESPONSIBILITY TO FAMILIARISE HIM/HERSELF WITH THE ALIGNMENT OF THE UNDERGROUND SERVICES AND TO TAKE THE NECESSARY PRECAUTIONS NOT TO DAMAGE ANY OF THE UNDERGROUND SERVICES."]
[]
[null,"TENDER RATES MUST BE COMPLETED TO ALLOW FOR ANY PART OR QUANTITIES TO BE REMOVED OR SIGNIFICANTLY REDUCED."]
[]
[]
[null,"This Schedule of Quantities should be read in conjunction with the following drawings and documents:"]
[null,null,"DRAWING NUMBER","DRAWING NAME"]
[null,null,"SKETCHPLANS:"]
[null,"*","IS-3674-000","LANDSCAPE CONCEPT PLAN"]
[]
[null,null,"DOCUMENT NAME"]
[null,"*","Provisional Bill of Quantities"]
[null,"*","General Landscape Specifications"]
[null,"*","Paving: SANS 1200 MJ"]
[]
[null,null,"IMPORTANT NOTES: "]
[null,null,"The lowest tender will not necessary be accepted. Tender rates must be completed to allow for any part or quantities to be removed or significantly reduced, where so required."]
[]
[null,null,"COMPULSORY TENDER BRIEFING MEETING ON SITE: "]
[null,null,"Date: TBC"]
[]
[null,null,"TENDER CLOSE: "]
[null,null,"Date: TBC"]
[]
[null,null,"Address: "]
[null,null,"3 Alice Lane, Sandown, Sandton"]
[]
[null,null,"Works completion date: "]
[null,null,"Commencement of Landscape construction: To be confirmed with Main contractor."]
[]
[]
[null,"PART 1:","INTERNAL HOUSE GARDEN - SOFT AND HARD LANDSCAPING"]
[null,"PART 2:","GROUNDS UPGRADE - CIVIL AND EXTERNAL WORKS"]
[]
[]
[null,null,"PRELIMINARIES AND GENERAL (Contractor's own %)"]
[]
[null,null,"CONTINGENCIES (0%)",{"$nulls":5},{"v":0,"d":"0.0%"}]
[]
[null,null,"SUB TOTAL FOR ALL AREAS (excl VAT, excl FEES)"]
[]
[]
[]
[null,null,"EXCLUDED ITEMS:"]
[null,null,"* Water points"]
[null,null,"* Sleeves by Civil works","`"]
[null,null,"* All hard landscaping items, i.e. road surfaces, kerds, paving & sidewalks etc."]
[null,null,"*All furniture, i.e. bollards, bins etc. "]
[null,null,"*Layer works"]
[null,null,"*Stormwater "]
[null,null,"*Landscape Lighting "]
[null,null,"*Removal of Trees "]

{"sheet":"PART 1","index":1,"n_rows":292,"n_cols":10,"rows_kept":292,"merged":[[0,1,0,9],[2,1,2,9],[3,2,3,9],[43,2,43,7],[50,2,50,8],[51,2,51,4],[52,2,52,8],[53,2,53,8],[54,2,54,8],[55,2,55,8],[56,2,56,8],[57,2,57,7],[62,2,62,8],[66,2,66,8],[67,2,67,8],[68,2,68,8],[74,2,74,8],[75,2,75,8],[77,2,77,8],[79,2,79,8],[80,2,80,8],[81,2,81,8],[82,2,82,8],[115,2,115,4],[116,2,116,8],[117,2,117,4],[118,2,118,4],[119,2,119,4],[120,2,120,4],[121,2,121,4],[129,2,129,7],[136,2,136,5],[137,2,137,5],[138,2,138,5],[139,2,139,5],[140,2,140,5],[141,2,141,5],[145,2,145,8],[146,2,146,6],[147,2,147,4],[148,2,148,4],[153,2,153,5],[164,2,164,5],[165,2,165,5],[166,2,166,5],[167,2,167,5],[168,2,168,5],[169,2,169,5],[170,2,170,5],[175,2,175,7],[237,2,237,4],[241,2,241,7],[248,2,248,5],[259,2,259,7],[265,2,265,6],[266,2,266,6],[270,2,270,5],[288,2,288,7],[291,2,291,7]]}
[null,"NELSON MANDELA PRISON HOUSE"]
[]
[null,"BILL OF QUANTITIES"]
[null,"PART 1:","INTERNAL HOUSE GARDEN- SOFT AND HARD LANDSCAPING"]
[null,null,"SUMMARY "]
[]
[null,"1.",{"$f":"C30","v":"MISCELLANEOUS - PART 1"}]
[]
[null,"2.",{"$f":"C47","v":"EARTHWORKS AND SOIL IMPROVEMENTS - PART 1"}]
[]
[null,"3.",{"$f":"C133","v":"PLANTING - PART 1"}]
[]
[null,"4.",{"$f":"C179","v":"HARD LANDSCAPING - PART 1"}]
[]
[null,"5.",{"$f":"C245","v":"HAND-WATERING & EQUIPMENT - PART 1"}]
[]
[null,"6.",{"$f":"C263","v":"MAINTENANCE - PART 1"}]
[]
[null,null,"SUB-TOTAL FOR PART 1"]
[{"$nulls":9},"Excl. VAT"]
[]
[]
[null,null,"SUMMARY "]
[null,null,"Total soft landscaping",{"$nulls":3},"m²",{"$f":"SUM(H155+H163)","v":649}]
[null,null,"Total hard landscaping",{"$nulls":3},"m²",{"$f":"SUM(D205+E239)","v":83}]
[null,null,"Total Area",{"$nulls":3},"m²",{"$f":"SUM(H24:H25)","v":732}]
[]
[null,"ITEM","DESCRIPTION OF WORK",{"$nulls":3},"UNIT","QTY","RATE","TOTAL"]
[]
[null,"1.","MISCELLANEOUS - PART 1"]
[]
[null,"1.1","SITE CLEARANCE"]
[null,"a.","Loading and removal to an approved dumping site off site, all unusable material, debris and stone, unused plant materials, placed in measurable storage heaps, resulting from the initial soil preparation to the final finishing process (other than specified). "]
[null,"b.","Collect unwanted materials and place in measurable heaps, and certified by Landscape Architect on site prior to removal."]
[null,"c.","The contractor should at all times ensure to keep the site in a neat and tidy condition. "]
[null,"d.","Provision for removal of unwanted material or material not suitable for fill - to spoil material off site \n(15mm layer over area for manicured planting areas)",{"$f":"SUM(H26)","v":732},"m²",null,"m³",{"$f":"ROUND((D36*0.015),0)","v":11}]
[null,"ei.","Provision for hard rock excavation and subsoil conditions.",{"$nulls":3},"PC SUM",1,{"v":50000,"d":"50,000.00"},{"$f":"H37*I37","v":{"v":50000,"d":"50,000.00"}}]
[null,"eii.","Contractor to specify own % mark-up"]
[]
[null,"1.2","TREE FELLING - Allowance by Specialist"]
[null,"a.","Provision for tree felling for 2 x existing trees (including: tree removal, stem removal, clearing of site & cut back of roots)",{"$nulls":3},"PC SUM",1,{"v":10500,"d":"10,500.00"},"BY OTHERS"]
[null,"b.","Contractor to specify own % mark-up",{"$nulls":6},"BY OTHERS"]
[]
[null,null,"TOTAL FOR MISCELLANEOUS:"]
[]
[]
[null,"2.","EARTHWORKS AND SOIL IMPROVEMENTS - PART 1"]
[]
[null,"2.1","TOPSOIL"]
[null,"2.1.1","Topsoil (import and spread)"]
[null,"a.","The contractor to provide all necessary equipment, labour and machinery for the import and spread of topsoil. "]
[null,"b.","Provide a sample of topsoil for approval by the Client or Client Representative/Landscape Architects."]
[null,"c.","The topsoil to be free of any building rubble, rocks or plant materials."]
[null,"d.","Spread topsoil for groundcovers to a minimum thickness of 75mm average over de-compacted areas and 100mm over planting areas"]
[null,"e.","Spread topsoil for tree holes where required to a minimum of 0.34m³ per tree hole"]
[null,"f.","Rate is to be inclusive of all intensive hand labour, where required."]
[null,"g.","Compact soils where required and specified and prevent soil erosion at all times."]
[null,"h.","IMPORTANT NOTE FOR IMPORT OF TOPSOIL: PAYMENT FOR TOPSOIL WILL ONLY TAKE PLACE ON RECEIPT OF SIGNED DELIVERY NOTES. RECIEPTS ARE TO BE APPROVED BY THE LANDSCAPE ARCHITECT PRIOR TO EACH PAYMENT CERTIFICATE.  TOPSOIL WILL NOT BE CERTIFIED WITHOUT THE DELIVERY NOTES."]
[null,"i.","Provision for 100mm layer for lawn areas",{"$f":"SUM(H163)","v":611},"m²",null,"m³",{"$f":"ROUND((D59*0.1),0)","v":61}]
[null,"j.","TOTAL Topsoil import and spread",{"$nulls":3},"m³",{"$f":"SUM(H59:H59)","v":61},null,"RATE ONLY"]
[]
[null,"2.2","SCARIFYING"]
[null,"a.","Supply all the necessary equipment, tools  and labour for scarifying of all areas. "]
[null,"b.","Rip soil in all areas."]
[null,"c.","Depth -- 150mm."]
[null,"d.","Rip in two directions."]
[null,"e.","Use hand labour to scarify under trees to ensure that tree roots do not get damaged."]
[null,"f.","Contractor is to ensure that no services, existing paving or concrete haunching behind existing kerbs, are damaged."]
[null,"g.","Remove all unwanted debris and medium to large sized rocks from the scarified soils."]
[null,"h.","Rate is to be all inclusive per square meter."]
[null,"i.","All inclusive rate per square meter."]
[null,"j.","Provision for all open ground areas",{"$nulls":3},"m²",{"$f":"SUM(H155+H163)","v":649}]
[]
[null,"2.3","FINEGRADING "]
[null,"a.","Supply all necessary labour, machinery and equipment for the fine trimming of the planting soils of all areas."]
[null,"b.","The contractor must ensure that all areas to be planted are compacted sufficiently to avoid any subsidence later on. Soil surface to be planted should not exceed a tolerance of 30mm in height when measured from the basic topographical line."]
[null,"c.","Cultivate fertilizers and compost as supplied elsewhere."]
[null,"d.","Provision must be made for proper and effective storm  water drainage. "]
[null,"e.","Soil erosion should be avoided at all times."]
[null,"f.","Stones larger than 40mm in diameter and all foreign material must be removed and used for fill."]
[null,"g.","Final surface must be shaped to desired profiles as to flow into levels of roadways and structures."]
[null,"h.","No irrigation or storm water should be allowed to puddle anywhere behind the retaining walls or in any of the allocated plant bed areas."]
[null,"i.","Allow for shaping by hand."]
[null,"j.","Provision for finegrading of all planting only. Allow for shaping by hand",{"$nulls":3},"m²",{"$f":"H72","v":649}]
[]
[null,"2.4","COMPOST (Import and spread) & SOIL PREPARATION"]
[null,"a.","The contractor to provide all necessary equipment, labour and machinery for import and spread of compost."]
[null,"b.","Sample of compost must comply with specification and be approved by the Landscape Architect prior to delivery on site."]
[null,"c.","All compost shall consist of well-decomposed organic material, free of detrimental salts, glass, debris, weeds and other toxic impurities."]
[null,"d.","The pH shall not exceed 7.0."]
[null,"e.","Compost shall be protected against excessive rain, wind and dissipation."]
[null,"f.","Payment after planting."]
[null,"g.","Application rate"]
[null,"h.","IMPORTANT NOTE: PAYMENT FOR COMPOST WILL ONLY TAKE PLACE ON RECEIPT OF SIGNED DELIVERY NOTES BY THE LANDSCAPE ARCHITECT PRIOR TO EACH PAYMENT CERTIFICATE.  COMPOST WILL NOT BE CERTIFIED WITHOUT THE DELIVERY NOTES."]
[null,"i.","Provision for 80mm layer over rose bed area",38,"m²",null,"m³",{"$f":"SUM(D95)*0.08","v":{"v":3.04,"d":"3"}}]
[null,"j.","Provision for 80mm layer over lawn area",{"$f":"SUM(H163)","v":611},"m²",null,"m³",49]
[null,"k.","TOTAL Compost import and spread",{"$nulls":3},"m³",{"$f":"SUM(H95:H96)","v":{"v":52.04,"d":"52"}}]
[]
[null,"l.","TOTAL Vitasoil for lawn [150ml/m²]: rate must include cultivation into soil",{"$f":"SUM(H163)","v":611},"m²",null,"l",92]
[]
[null,"2.5","FERTILISERS"]
[null,"a.","Application rate: 100 gm per m²"]
[null,"b.","Spread prior to fine trimming."]
[null,"c.","Working in 200 mm deep."]
[null,"d.","Payment per m³ after fine trimming"]
[null,"e.","Rate to be all inclusive"]
[null,"f.","Provision for 2:3:2 for roses & lawn [100g/m²]:",38,"m²",null,"kg",{"$f":"ROUND((D107*0.1),0)","v":4}]
[null,"g.","Provision for superphosphate for roses & lawn [50g/m²]:",{"$f":"D107","v":38},"m²",null,"kg",{"$f":"ROUND((D108*0.05),0)","v":2}]
[null,"h.","Provision for Milorgranite 6-4-0 or Talborne Organics Vita Green 5:1:5 (or similar approved) for lawn [60g/m²] :",{"$f":"D99","v":611},"m²",null,"kg",37]
[]
[null,"2.6","MULCH"]
[null,"a.","Mulch may be bark chip, wood chip or fruit pip mulch only"]
[null,"b.","Provision for import and spred of 60mm layer of suitable mulch over rose bed area",{"$nulls":3},"m³",3]
[]
[null,"2.7","BULK EARTHWORKS"]
[null,null,"Refer to detail Drawing IS-3690-6304b Jumbo Park, Phola - Bulk Earthworks Levels Plan"]
[null,"a.","Compaction to be in layers of 150mm to 92% Mod AASHTO"]
[null,"b.","The contractor to provide all necessary equipment, labour and machinery for the carting and spread of topsoil for bulk earthworks"]
[null,"c.","Contractor to provide G5 or better material to achieve compaction."]
[null,"d.","Layer works design is provisional"]
[null,"e.","Layer works design is subject to change"]
[null,"f.","Verification by qualified and registered civil engineer"]
[null,"gi.","Provision for 100mm G5 layer, compacted to 95% MOD AASHTO (To Engineer's specification) ",{"$f":"SUM(H205)","v":90},"m²",null,"m³",33]
[null,"gii.","Provision for sandy conditions: rip and re-compact in-situ layer minimum 200mm below the G5 to 93% MOD AASHTO (To Engineer's specification) ",{"$f":"SUM(D123:D123)","v":90},"m²",null,"m³",{"$f":"SUM(H123:H123)","v":33}]
[]
[null,"2.8","TEST AND TEST RESULTS"]
[null,"ai.","Provision for DCP tests to be done, and other tests to be done with a certified laboratory test (x3 each)",{"$nulls":3},"no.",3]
[null,"aii.","Compaction tests 3 per layer (In-situ and imported or G5 layer) - total 6 tests and result for paved areas.",{"$nulls":3},"no.",3]
[]
[null,null,"TOTAL FOR EARTHWORKS AND SOIL IMPROVEMENTS:"]
[]
[]
[null,"3.","PLANTING - PART 1"]
[null,null,"Refer to drawing: IS-3758-601"]
[]
[null,null,"Plants:"]
[null,null,"Purchase all plants at registered nurseries and transport to site."]
[null,null,"All plants must be transported to the site in trucks with closed canopies.  Plants in transit may not be exposed to wind or any other harmful elements."]
[null,null,"All plants are to be viewed and approved by the Landscape Architect before planting."]
[null,null,"No plants covered with pests or other damages will be accepted."]
[null,null,"All shrubs and groundcovers to be planted in grids, equally spaced."]
[null,null,"The Landscape Architect retains the right to adjust specific species and plant sizes if plants are not available or of poor quality. "]
[null,null,"Payment after planting."]
[]
[null,"3.1","EVENT FRUIT TREES (Supply & Deliver, no planting)"]
[null,"a.","Trees provided by Contractor to meet the specifications."]
[null,"b.","Trees from 40-50 ltr containers: Min. 1800- mm height after planting with stem diameter of 25-30 mm measured 300mm above soil level - sample to be approved."]
[null,"c.","Contractor to water and guarantee each tree for max. 3 months after event or delivery to site"]
[]
[null,"d.","Olea Manzanela (Manzanilla)\nIncludes delivery \nExcludes planting and tree staking fertilizer.",{"$nulls":3},"no.",50]
[]
[null,"3.2","SHRUBS AND GROUNDCOVERS"]
[null,"a.","Soil preparation for roses"]
[null,"b.","For very sandy soil liberal water retaining organic material such as peat moss, coir (coconut) fibre or peanus shells and 80mm compost be cultivated into existing soil."]
[null,"c.","Rates to be all inclusive.",{"$nulls":3},"m²",38]
[null,"d.","Provision for Rose bed: Asparagus 'Mazeppa' (Emerald Fern) 4L @ 6/m²",{"$f":"SUM(H155)","v":38},"m²",null,"no.",{"$f":"SUM(D156)*6","v":228}]
[null,"ei.","Rosa Iceberg ",{"$nulls":3},"no.",5]
[null,"eii.","Rosa Queen Elizabeth STD",{"$nulls":3},"no.",8]
[null,"eiii.","Rosa Nelson Mandela STD",{"$nulls":3},"no.",7]
[null,"eiv.","Tulbaghia violacea (Society Garlic) 2L @ 12/m² to be placed by L. Architect on site.",30,"m²",null,"no.",{"$f":"SUM(D160)*9","v":270}]
[null,null,"Proposed Rose supplier or similar approved:\nLUDWIG'S ROSES CPT:\n081 501 7070 (David)\n"]
[]
[null,"3.3","Lawn",{"$nulls":3},"m²",{"$f":"SUM(H173)","v":611}]
[null,"a.","Soil preparation for lawn"]
[null,"b.","The Contractor shall allow for the supply and installation of approved Cynodon dactylon sods.  "]
[null,"c.","The sods must consist of healthy green grass with dense root systems, free from weeds and diseases, and with no dead patches.  The grass must be mowed just before the sods are cut.  Sods must be approved by the Landscape Architect before packing may commence."]
[null,"d.","The surface area shall be lightly watered before the packing of sods commence.Ensure that all openings in grass blocks receive grass cutting from sods."]
[null,"e.","Grass delivered to site must be laid within 24 hours of delivery. No grass shall be packed on a Friday or the day prior to a public holiday, to prevent drying out. All laid lawn shall be watered twice daily until final handover of the site. "]
[null,"f.","The Rate per m² shall allow for all costs of purchasing, transport, equipment, labour, material and supervision to execute the lawn planting to the satisfaction of the Landscape Architect."]
[null,"gi.","For new lawns in sandy conditions, apply Vitasoil at a rate of 500ml/m².  Cultivate and worked into the soil, combined with compost for maximum moisture retention.  For new turf installations, a common recommendation is a 20% Vitasoil to 80% sandy soil mix for the top layer."]
[null,"gii.","Recommendations for sandy soil: Initial setup - amend the top 150mm of soil with Vitasoil and 80mm organic compost before laying turf. Application method - work into the root zone by hand during planting.  Sandy conditions note - sandy soil lacks nutrient-holding capacity.  Vitasoil aids by restoring biological balance and holding moisture.  Follow-up maintenance - Additional applications every 2-3 weeks to be used until the soil structure improves."]
[null,"h.","Rates to be all inclusive.",{"$nulls":3},{"$f":"G173","v":"m²"}]
[null,"i.","Provision for Cynodon dactylon (Bermuda Grass) Instant Lawn (including 10%)",{"$nulls":3},"m²",611]
[null,null,"Application or similar approved:\nVITASOIL:\nsales@vitasoil.co.za\n"]
[]
[null,null,"TOTAL FOR PLANTING:"]
[]
[]
[null,"4.","HARD LANDSCAPING - PART 1"]
[null,null,"Refer to drawing: IS-3758-601"]
[]
[null,null,"GENERAL LANDSCAPE SPECIFICATION"]
[null,"a.","The contractor to provide all necessary machinery, labour, transport and materials for the supply and installation of the new unit paver hard surfaces as specified. "]
[null,"b.","All paving must be installed to meet the manufacturers specification, with special reference to details as provided by the Landscape Architect."]
[null,"c.","Test sample: The contractor is to provide a 2m² test panel of all the different paving types as specified in the schedule of quantities. This needs to be approved by the Landscape Architect prior to the installation of any final surface. All aspects as specified need to be included into the test panel sample."]
[null,"d.","Paving setting out: All hard surface setting out lines are as per the construction drawing and need to be approved by the landscape architect prior to the site shaping and sub base preparation."]
[null,"e.","All levels need to accommodate a minimum fall to allow for sufficient water run off as per instruction and approval by the Landscape Architect."]
[null,"f.","Soil preparation: Final site levels need to be shaped and sloped for approval before any compaction can commence. Failure in doing so will lead to the re compaction of the relevant areas."]
[null,"g.","On approval of the general site levels and slopes, loosen sub soils to a depth of 200mm and remove all unwanted materials including organic matter and rocks larger than 40mm diameter."]
[null,"h.","Moisten excavated soils and compact soil in layers not exceeding 100mm (compacted) to 93% MOD AASHTO to form the sub base to the desired levels and slopes. "]
[null,"i.","Excavate to allow for the final finishing height to be 35mm above the general shaped landscape soil levels. The surrounding landscape should be final shaped to tie into the pathways, not effecting the storm water run off pattern as approved."]
[null,"j.","All final soil paving base layers to be approved by the Landscape Architect prior to installation of the final paving."]
[null,"k.","Excavate for hard surface edge footing on completion of the sub base compaction."]
[null,"l.","Edge footing to respond to the specific paving layout."]
[null,"m.","Concrete footing is restricted to under the outer hard surface edge only. No concrete side haunching will be allowed."]
[null,"n.","Unit paving final finish: No cracked, chipped, paving with unwanted markings, or paving other than specified will be accepted. "]
[null,"o.","All areas showing subsidence on the final product will mean that the larger area will be redone, re-compacted and repaired to meet the specifications."]
[null,"p.","All paving to slope at 1-2% fall. Direction to be determined on site by the landscape architect."]
[null,"q.","Install all paving units as specified and per manufacturers minimum specifications."]
[null,"r.","All cutting to be mechanical cut only. Cut paver details to be approved prior to installation by the landscape architect."]
[null,"s.","Topo surveyor - on site for setting out of works (to be included in rates)."]
[null,"t.","Rate to be all inclusive."]
[]
[null,"4.1","EXPOSED AGGREGATE PATH"]
[null,"a.","Supply, deliver & install 100mm thick Exposed Aggregate Path; including Mesh Ref 311 (according to Manufacturer's Specifications); 25MPa; Artevia Spec Sheet; Chryso Spec Sheet & General Specification for Exposed Aggregate Concrete Paving (including 20% for re-measure on site). Rate to include: excavation, shaping & leveling - as per General Specifications document",73,"m²",null,"m²",90]
[null,null,"Refer to: General Specification for Exposed Aggregate Concrete Paving"]
[]
[null,"4.2","JOINTS"]
[null,"ai.","Supply, deliver & install 6mm saw-cut joints; Spectrem 800 (minimum 2m apart) - as per General Specifications document (or similar approved)",{"$nulls":3},"Lm",38]
[null,"aii.","Supply, deliver & install 8mm expansion joints; TAMMSFLEX 75 (minimum 8m apart)  - as per General Specifications document (or similar approved)",{"$nulls":3},"Lm",21]
[null,null,"Refer to: General Specification for Exposed Aggregate Concrete Paving"]
[]
[null,"4.3","STEPPING STONES"]
[null,"a.","Supply, deliver & install 600 x 300 x 40mm grey pavers on on 20mm washed riversand",{"$nulls":3},"no.",34]
[null,null,"Proposed supplier or similar approved:\nLOVRIC DITTBENDER TERRAZZO TILES:\n021-531 8570 / 084 547 1410                                                                                                                                                      enviromi@mweb.co.za\n"]
[]
[null,"4.4","GARDEN EDGE"]
[null,"a.","Supply, deliver & install (according to Manufacturer's specifications): BERA Eco Edge or similar approved. UV stable and 100% recyclable",{"$nulls":3},"Lm",30,null,"RATE ONLY"]
[null,"b.","BERA B-Edge Smart - or similar approved\nStandard lengths of 6 m or 12 m\n4mm Mild Steel edge 150mm wide to be secured with pegs 300mm deep; primer treated, final colour to be matt black epoxy coats x2. \nMatt Black Epoxy Powder Coat: coating is impact and abrasion and corrosion resistant.",{"$nulls":3},"Lm",30]
[null,null,"Proposed supplier or similar approved:\nBERA:\n083 449 3954 (Franko)\n"]
[]
[null,"4.5","REPAIR OF EXISTING TILES - PC SUM"]
[null,"a.","Provision for repair of existing floor tiles (exterior) and building apron as per Architect / Landscape Architect instruction",{"$nulls":3},"PC SUM",1,{"v":5000,"d":"5,000.00"},{"$f":"I223*H223","v":{"v":5000,"d":"5,000.00"}}]
[null,"b.","Contractor to specify own % mark-up"]
[]
[null,"4.6","ATTICK STOCK TILES - NO INSTALLATION REQUIRED"]
[null,"ai.","Provision for 300 x 300 x 22mm Bello White Plain",{"$nulls":3},"no.",5]
[null,"aii.","Provision for 228 x 228 x 17mm Bello White Plain",{"$nulls":3},"no.",5]
[null,"aiii.","Provision for 228 x 228 x 17mm Bello White Mosaic Pattern Tile",{"$nulls":3},"no.",2]
[null,null,"Proposed supplier or similar approved:\nLOVRIC DITTBENDER TERRAZZO TILES:\n021-531 8570 / 084 547 1410                                                                                                                                                      enviromi@mweb.co.za\n"]
[null,"4.7","RAMPS - PC SUM Refer to drawing: "]
[null,null,"Refer to drawings: IS-3758-605; IS-3758-606; IS-3758-607 "]
[null,"a.","Provision for 3 x universal access ramps to Architect's detail and specification- BY SPECIALIST",{"$nulls":3},"PC SUM",1,{"v":144000,"d":"144,000.00"},{"$f":"I233*H233","v":{"v":144000,"d":"144,000.00"}}]
[null,"b.","Provision for Profit and Attendance (% to be confirmed by Contractor)"]
[null,null,"Proposed supplier or similar approved:  Troy Thomson <troythomson7@gmail.com>\nCell. 079 993 2321"]
[]
[null,"4.8","GRAVEL"]
[null,"a.","The contractor to provide all necessary machinery, labour, transport and materials for the installation of gravel at the base of trees"]
[null,"b.","Provision for 6-12mm diam ornamental gravel: colour: sandstone and 100mm deep in courtyard areas","m²",10,null,"m³",1]
[null,"c.","Provision for Bidum",{"$nulls":3},"m²",10]
[]
[null,null,"TOTAL FOR HARD LANDSCAPING: "]
[]
[]
[null,"5.","HAND-WATERING & EQUIPMENT - PART 1"]
[]
[null,"5.1","UNDERGROUND SERVICES - PROVISION FOR PVC SLEEVES"]
[null,"a.","All sleeves to include draw wires and caps."]
[null,"b.","The Contractor shall allow for the supply and installation of approved 1.5mm galvanised draw wires and PVC end Caps."]
[null,"c.","Supply, deliver & install Ribbed 110mm diam. sleeves - to depth of 450mm",{"$nulls":3},"Lm",22]
[null,"d.","Supply, deliver & install 60mm diam. sleeves - to depth of 450mm",{"$nulls":3},"Lm",22]
[]
[null,"5.2","ADDITIONAL HOSES (Main House)"]
[null,"a.","20MM X 100M DRAGLINE M-DUTY BLACK",{"$nulls":3},"no.",1]
[null,"b.","3/4in SNAP ON HOSE CONNECTOR",{"$nulls":3},"no.",1]
[null,"c.","SNAP ON SPRAY NOZZLE",{"$nulls":3},"no.",1]
[null,"d.","20MM X 600MM DRAGLINE STAND",{"$nulls":3},"no.",1]
[null,"e.","AQUA PLASTIC SPRINKLER FC3/4\"-3.57 X2.38 BLUE/YELL",{"$nulls":3},"no.",1]
[]
[null,null,"TOTAL FOR HAND-WATERING & EQUIPMENT: "]
[]
[]
[null,"6.","MAINTENANCE - PART 1"]
[]
[null,"a.","Allow for the complete maintenance and establishment of all planted areas, inclusive of :"]
[null,"b.","Maintenance of all trees and shrubs&groundcovers (including all planting in pots)."]
[null,"c.","Application of fertilisers."]
[null,"d.","Replacement of plants."]
[null,"e.","Topping up of potting or planter media where settling occurs."]
[null,"f.","The maintenance period will commence upon issue of the Certificate of Practical Completion."]
[null,"g.","For Cynodon lawn on sandy, nutrient-poor soil organic approach is a combination of high-nitrogen fertilizers (like Milogranite 6-4-0 or Talborne Organics Vita Green 5:1:5) or similarly approved, and monitor growth and reaction to treatment.  Additional supply smaller amounts more frequently every 4 weeks during maintenance utilise same organic product range."]
[null,"h.","Rate to be all inclusive."]
[]
[null,"6.1","MAINTENANCE for new areas"]
[null,"a.","Provision for additional maintenance for new lawn area",{"$f":"SUM(H163)","v":611},"m²",null,"mnth",6]
[null,"b.","Provision for additional maintenance for new roses area",{"$f":"H155","v":38},"m²",null,"mnth",6]
[null,"c.","TOTAL Top-up Vitasoil for lawn [75ml/m²]: rate must include cultivation into soil",{"$f":"SUM(D275)","v":611},"m²",null,"l",46]
[]
[null,"6.2","MAINTENANCE for existing lawn"]
[null,"a.","Provision for additional maintenance for existing lawn area",916,"m²",null,"mnth",6]
[null,"b.","TOTAL Top-up Vitasoil for lawn [75ml/m²]: rate must include cultivation into soil",{"$f":"SUM(D280)","v":916},"m²",null,"l",138,null,"RATE ONLY"]
[null,"c.","ADDITIONAL HOSES (Guard House)"]
[null,"ci.","20MM X 100M DRAGLINE M-DUTY BLACK",{"$nulls":3},"no.",1]
[null,"cii.","3/4in SNAP ON HOSE CONNECTOR",{"$nulls":3},"no.",1]
[null,"ciii.","SNAP ON SPRAY NOZZLE",{"$nulls":3},"no.",1]
[null,"civ.","20MM X 600MM DRAGLINE STAND",{"$nulls":3},"no.",1]
[null,"cv.","AQUA PLASTIC SPRINKLER FC3/4\"-3.57 X2.38 BLUE/YELL",{"$nulls":3},"no.",1]
[]
[null,null,"TOTAL FOR MAINTENANCE:"]
[]
[]
[null,null,"TOTAL FOR PART 1 (To be carried forward to Summary Page)"]

{"sheet":"PART 2","index":2,"n_rows":227,"n_cols":10,"rows_kept":227,"merged":[[0,1,0,9],[2,1,2,9],[3,2,3,9],[42,2,42,7],[48,2,48,4],[49,2,49,8],[50,2,50,4],[51,2,51,4],[52,2,52,4],[53,2,53,4],[54,2,54,4],[67,2,67,8],[68,2,68,4],[69,2,69,8],[70,2,70,8],[71,2,71,8],[72,2,72,8],[73,2,73,8],[74,2,74,7],[101,2,101,7],[108,2,108,5],[109,2,109,5],[110,2,110,5],[111,2,111,5],[112,2,112,5],[113,2,113,5],[118,2,118,5],[119,2,119,5],[120,2,120,5],[121,2,121,5],[122,2,122,5],[123,2,123,5],[124,2,124,5],[130,2,130,4],[131,2,131,4],[135,2,135,7],[182,2,182,5],[194,2,194,7],[201,2,201,5],[212,2,212,7],[223,2,223,7],[226,2,226,7]]}
[null,"NELSON MANDELA PRISON HOUSE"]
[]
[null,"BILL OF QUANTITIES"]
[null,"PART 2:","GROUNDS UPGRADE - CIVIL AND EXTERNAL WORKS"]
[null,null,"SUMMARY "]
[]
[null,"1.",{"$f":"C29","v":"MISCELLANEOUS - PART 2"}]
[]
[null,"2.",{"$f":"C46","v":"EARTHWORKS - PART 2 "}]
[]
[null,"3.",{"$f":"C105","v":"PLANTING - PART 2"}]
[]
[null,"4.",{"$f":"C139","v":"HARD LANDSCAPING - PART 2"}]
[]
[null,"5.",{"$f":"C198","v":"HAND-WATERING & EQUIPMENT - PART 2"}]
[]
[null,"6.",{"$f":"C217","v":"MAINTENANCE - PART 2"}]
[]
[null,null,"SUB-TOTAL FOR PART 2"]
[{"$nulls":9},"Excl. VAT"]
[]
[]
[null,null,"SUMMARY "]
[null,null,"Total Civil and External Works",{"$nulls":3},"m²",{"$f":"SUM(D165:D166)","v":360}]
[null,null,"Total Area",{"$nulls":3},"m²",{"$f":"SUM(H24:H24)","v":360}]
[]
[null,"ITEM","DESCRIPTION OF WORK",{"$nulls":3},"UNIT","QTY","RATE","TOTAL"]
[]
[null,"1.","MISCELLANEOUS - PART 2"]
[]
[null,"1.1","SITE CLEARANCE"]
[null,"a.","Loading and removal to an approved dumping site off site, all unusable material, debris and stone, unused plant materials, placed in measurable storage heaps, resulting from the initial soil preparation to the final finishing process (other than specified). "]
[null,"b.","Collect unwanted materials and place in measurable heaps, and certified by Landscape Architect on site prior to removal."]
[null,"c.","The contractor should at all times ensure to keep the site in a neat and tidy condition. "]
[null,"d.","Provision for removal of unwanted material or material not suitable for fill - to spoil material off sit; 385m² (including 20% for re-measure on site)\n(50mm layer over area for exposed aggregate concrete paving path)",{"$f":"SUM(H24)","v":360},"m²",null,"m³",{"$f":"ROUND((D35*0.05),0)","v":18}]
[null,"ei.","Provision for hard rock excavation and subsoil conditions.",{"$nulls":3},"PC SUM",1,{"v":70000,"d":"70,000.00"},{"$f":"H36*I36","v":{"v":70000,"d":"70,000.00"}}]
[null,"eii.","Contractor to specify own % mark-up"]
[]
[null,"1.2","TREE TRIMMING AND ROT PRUNING - Allowance by Specialist"]
[null,"a.","Tree trimming and root pruning (Provision for PC sum By Specialist) Tree felling, destumping and clearing of felled tree.  Load and removal to the contractors own dumping site. Area where trees was removed to be made good.",{"$nulls":3},"PC SUM",1,{"v":18500,"d":"18,500.00"},{"$f":"SUM(H40*I40)","v":{"v":18500,"d":"18,500.00"}}]
[null,"b.","Contractor to specify own % mark-up"]
[]
[null,null,"TOTAL FOR MISCELLANEOUS:"]
[]
[]
[null,"2.","EARTHWORKS - PART 2 "]
[]
[null,"2.1","BULK EARTHWORKS"]
[null,null,"Refer to detail Drawing IS-3690-6304b Jumbo Park, Phola - Bulk Earthworks Levels Plan"]
[null,"a.","Compaction to be in layers of 150mm to 92% Mod AASHTO"]
[null,"b.","The contractor to provide all necessary equipment, labour and machinery for the carting and spread of topsoil for bulk earthworks"]
[null,"c.","Contractor to provide G5 or better material to achieve compaction."]
[null,"d.","Layer works design is provisional"]
[null,"e.","Layer works design is subject to change"]
[null,"f.","Verification by qualified and registered civil engineer"]
[null,"gi.","Provision for 150mm G5 layer, compacted to 95% MOD AASHTO (To Engineer's specification) ",{"$f":"SUM(H165)","v":328},"m²",null,"m³",50]
[null,"gii.","Provision for 100mm G5 layer, compacted to 95% MOD AASHTO (To Engineer's specification) ",{"$f":"SUM(H166)","v":69},"m²",null,"m³",7]
[null,"giii.","Provision for sandy conditions: rip and re-compact in-situ layer minimum 200mm below the G5 to 93% MOD AASHTO (To Engineer's specification) ",{"$f":"SUM(D56:D57)","v":397},"m²",null,"m³",57]
[null,"giv.","Provision for shaping ",{"$f":"SUM(D57:D58)","v":466},"m²",null,"m³",{"$f":"SUM(H57:H58)","v":64}]
[]
[null,"2.2","TEST AND TEST RESULTS"]
[null,"ai.","Provision for DCP tests to be done, and other tests to be done with a certified laboratory testing on site (x3 each)",{"$nulls":3},"no.",2]
[null,"aii.","Compaction tests 3 per layer (In-situ and imported or G5 layer) - total 6 tests and result for paved areas.",{"$nulls":3},"no.",2]
[]
[]
[null,"2.3","TOPSOIL"]
[null,"2.3.1","Topsoil (import and spread)"]
[null,"a.","The contractor to provide all necessary equipment, labour and machinery for the import and spread of topsoil. "]
[null,"b.","Provide a sample of topsoil for approval by the Client or Client Representative/Landscape Architects."]
[null,"c.","The topsoil to be free of any building rubble, rocks or plant materials."]
[null,"d.","Spread topsoil for groundcovers to a minimum thickness of 75mm average over de-compacted areas and 100mm over planting areas"]
[null,"e.","Spread topsoil for tree holes where required to a minimum of 0.34m³ per tree hole"]
[null,"f.","Rate is to be inclusive of all intensive hand labour, where required."]
[null,"g.","Compact soils where required and specified and prevent soil erosion at all times."]
[null,"h.","IMPORTANT NOTE FOR IMPORT OF TOPSOIL: PAYMENT FOR TOPSOIL WILL ONLY TAKE PLACE ON RECEIPT OF SIGNED DELIVERY NOTES. RECIEPTS ARE TO BE APPROVED BY THE LANDSCAPE ARCHITECT PRIOR TO EACH PAYMENT CERTIFICATE.  TOPSOIL WILL NOT BE CERTIFIED WITHOUT THE DELIVERY NOTES."]
[null,"i.","Provision for 100mm layer for lawn areas",{"$f":"SUM(H117)","v":162},"m²",null,"m³",{"$f":"ROUND((D76*0.1),0)","v":16}]
[null,"j.","TOTAL Topsoil import and spread",{"$nulls":3},"m³",{"$f":"SUM(H76:H76)","v":16},null,"RATE ONLY"]
[]
[null,"2.4","COMPOST (Import and spread) & SOIL PREPARATION"]
[null,"a.","The contractor to provide all necessary equipment, labour and machinery for import and spread of compost."]
[null,"b.","Sample of compost must comply with specification and be approved by the Landscape Architect prior to delivery on site."]
[null,"c.","All compost shall consist of well-decomposed organic material, free of detrimental salts, glass, debris, weeds and other toxic impurities."]
[null,"d.","The pH shall not exceed 7.0."]
[null,"e.","Compost shall be protected against excessive rain, wind and dissipation."]
[null,"f.","Payment after planting."]
[null,"g.","Application rate"]
[null,"h.","IMPORTANT NOTE: PAYMENT FOR COMPOST WILL ONLY TAKE PLACE ON RECEIPT OF SIGNED DELIVERY NOTES BY THE LANDSCAPE ARCHITECT PRIOR TO EACH PAYMENT CERTIFICATE.  COMPOST WILL NOT BE CERTIFIED WITHOUT THE DELIVERY NOTES."]
[null,"i.","Provision for 80mm layer over lawn area",{"$f":"SUM(H117)","v":162},"m²",null,"m³",{"$f":"SUM(D88)*0.08","v":{"v":12.96,"d":"13"}}]
[null,"j.","TOTAL Compost import and spread",{"$nulls":3},"m³",{"$f":"SUM(H88:H88)","v":{"v":12.96,"d":"13"}}]
[]
[null,"k.","TOTAL Vitasoil for lawn [150ml/m²]: rate must include cultivation into soil",{"$f":"SUM(H117)","v":162},"m²",null,"l",25]
[]
[null,"2.5","FERTILISERS"]
[null,"a.","Application rate: 100 gm per m²"]
[null,"b.","Spread prior to fine trimming."]
[null,"c.","Working in 200 mm deep."]
[null,"d.","Payment per m³ after fine trimming"]
[null,"e.","Rate to be all inclusive"]
[null,"f.","Provision for Milorgranite 6-4-0 or Talborne Organics Vita Green 5:1:5 (or similar approved) for lawn [60g/m²] :",{"$f":"D91","v":162},"m²",null,"kg",10]
[]
[]
[null,null,"TOTAL FOR EARTHWORKS AND SOIL IMPROVEMENTS:"]
[]
[]
[null,"3.","PLANTING - PART 2"]
[null,null,"Refer to drawing: IS-3758-604"]
[]
[null,null,"Plants:"]
[null,null,"Purchase all plants at registered nurseries and transport to site."]
[null,null,"All plants must be transported to the site in trucks with closed canopies.  Plants in transit may not be exposed to wind or any other harmful elements."]
[null,null,"All plants are to be viewed and approved by the Landscape Architect before planting."]
[null,null,"No plants covered with pests or other damages will be accepted."]
[null,null,"All shrubs and groundcovers to be planted in grids, equally spaced."]
[null,null,"The Landscape Architect retains the right to adjust specific species and plant sizes if plants are not available or of poor quality. "]
[null,null,"Payment after planting."]
[]
[null,"3.1","Lawn",{"$nulls":3},"m²",{"$f":"SUM(H127)","v":162}]
[null,"a.","Soil preparation for lawn"]
[null,"b.","The Contractor shall allow for the supply and installation of approved Cynodon dactylon sods.  "]
[null,"c.","The sods must consist of healthy green grass with dense root systems, free from weeds and diseases, and with no dead patches.  The grass must be mowed just before the sods are cut.  Sods must be approved by the Landscape Architect before packing may commence."]
[null,"d.","The surface area shall be lightly watered before the packing of sods commence.Ensure that all openings in grass blocks receive grass cutting from sods."]
[null,"e.","Grass delivered to site must be laid within 24 hours of delivery. No grass shall be packed on a Friday or the day prior to a public holiday, to prevent drying out. All laid lawn shall be watered twice daily until final handover of the site. "]
[null,"f.","The Rate per m² shall allow for all costs of purchasing, transport, equipment, labour, material and supervision to execute the lawn planting to the satisfaction of the Landscape Architect."]
[null,"gi.","For new lawns in sandy conditions, apply Vitasoil at a rate of 500ml/m².  Cultivate and worked into the soil, combined with compost for maximum moisture retention.  For new turf installations, a common recommendation is a 20% Vitasoil to 80% sandy soil mix for the top layer."]
[null,"gii.","Recommendations for sandy soil: Initial setup - amend the top 150mm of soil with Vitasoil and 80mm organic compost before laying turf. Application method - work into the root zone by hand during planting.  Sandy conditions note - sandy soil lacks nutrient-holding capacity.  Vitasoil aids by restoring biological balance and holding moisture.  Follow-up maintenance - Additional applications every 2-3 weeks to be used until the soil structure improves."]
[null,"h.","Rates to be all inclusive.",{"$nulls":3},{"$f":"G127","v":"m²"}]
[null,"i.","Provision for Cynodon dactylon (Bermuda Grass) Instant Lawn (including 10%)",{"$nulls":3},"m²",162]
[null,null,"Application or similar approved:\nVITASOIL:\nsales@vitasoil.co.za\n"]
[]
[null,"3.2","HYDROSEEDING by Specialist"]
[null,null,"An all-in-one mixture of specific and selected grass seeds, fertilisers, combined with a soil binder or tackifier, imported wood fibre mulch, soil ameliorates, growth stimulants and water is applied onto the prepared surfaces at a predetermined application rate.  The fibrous layer formed by the soil binder or tackifier when combined with the blended mulch creates a microclimate that permits seed germination to take place when soil moisture and temperature conditions are favourable.  Thereafter, the young emerging vegetation’s root systems develop quickly, anchoring the outer layer of the soil, significantly reducing erosion and accelerating plant succession of the applied vegetation types.\n\n(i)         Soil preparation \nWhere possible the topsoiled areas are to be scarified manually or mechanically, forming drills along the contours. The drills are to be approximately 150 mm apart and between 25 and 50 mm deep. \n\n(ii)        Hydroseeding Specification\nThe hydroseeding/amelioration application is to be carried out using suitable hydraulic seeding equipment with a built-in agitation system and a specialised centrifugal pump for handling varying viscous and slurry formulations."]
[null,null,"Seed Mixture:\nThe seeding application will be 40 kg/ha of a Mayfords Fynbos biome seed mix \n\nFertilisation\na.\tNPK 1:1:1 (36) @ 300kg/ha \nb.\tGrofast organic mixture @ 800kg/ha \n\nSoil Binder \nA polyacrilimide soil binding agent is to be added to the hydroseeding mixture at 10 kg/ha in order to bind the loose sand/soil particles and create a suitable microclimate when combined with the mulch and additives.\n\nMulch  \nLocally sourced veld / cotton mulch shall be incorporated into the hydroseeding mixture. The application rate for the mulch shall be 500 kg/ha.\n\nWater\nWater shall be applied at rate of 10 kl/ha during the seeding process. "]
[null,"a.","Provision for hydroseeding of low growing Cynodon dominat mix at 40 kg/ha. Rate to include hand shaping.",{"$nulls":3},"m²",1300]
[null,null,"VULA ENV. or similar approved:\nOffice: +27 22 766 1106\nMobile: +27 82 564 5748\nEmail: deon@vula.biz"]
[]
[null,null,"TOTAL FOR PLANTING:"]
[]
[]
[null,"4.","HARD LANDSCAPING - PART 2"]
[null,null,"Refer to drawing: IS-3758-602"]
[]
[null,null,"GENERAL LANDSCAPE SPECIFICATION"]
[null,"a.","The contractor to provide all necessary machinery, labour, transport and materials for the supply and installation of the new unit paver hard surfaces as specified. "]
[null,"b.","All paving must be installed to meet the manufacturers specification, with special reference to details as provided by the Landscape Architect."]
[null,"c.","Test sample: The contractor is to provide a 2m² test panel of all the different paving types as specified in the schedule of quantities. This needs to be approved by the Landscape Architect prior to the installation of any final surface. All aspects as specified need to be included into the test panel sample."]
[null,"d.","Paving setting out: All hard surface setting out lines are as per the construction drawing and need to be approved by the landscape architect prior to the site shaping and sub base preparation."]
[null,"e.","All levels need to accommodate a minimum fall to allow for sufficient water run off as per instruction and approval by the Landscape Architect."]
[null,"f.","Soil preparation: Final site levels need to be shaped and sloped for approval before any compaction can commence. Failure in doing so will lead to the re compaction of the relevant areas."]
[null,"g.","On approval of the general site levels and slopes, loosen sub soils to a depth of 200mm and remove all unwanted materials including organic matter and rocks larger than 40mm diameter."]
[null,"h.","Moisten excavated soils and compact soil in layers not exceeding 100mm (compacted) to 93% MOD AASHTO to form the sub base to the desired levels and slopes. "]
[null,"i.","Excavate to allow for the final finishing height to be 35mm above the general shaped landscape soil levels. The surrounding landscape should be final shaped to tie into the pathways, not effecting the storm water run off pattern as approved."]
[null,"j.","All final soil paving base layers to be approved by the Landscape Architect prior to installation of the final paving."]
[null,"k.","Excavate for hard surface edge footing on completion of the sub base compaction."]
[null,"l.","Edge footing to respond to the specific paving layout."]
[null,"m.","Concrete footing is restricted to under the outer hard surface edge only. No concrete side haunching will be allowed."]
[null,"n.","Unit paving final finish: No cracked, chipped, paving with unwanted markings, or paving other than specified will be accepted. "]
[null,"o.","All areas showing subsidence on the final product will mean that the larger area will be redone, re-compacted and repaired to meet the specifications."]
[null,"p.","All paving to slope at 1-2% fall. Direction to be determined on site by the landscape architect."]
[null,"q.","Install all paving units as specified and per manufacturers minimum specifications."]
[null,"r.","All cutting to be mechanical cut only. Cut paver details to be approved prior to installation by the landscape architect."]
[null,"s.","Topo surveyor - on site for setting out of works (to be included in rates)."]
[null,"t.","Rate to be all inclusive."]
[]
[null,"4.1","EXPOSED AGGREGATE PATH"]
[null,"a.","Supply, deliver & install 150mm thick Exposed Aggregate Path; including Mesh Ref 311. Refer to General Specification for Exposed Aggregate Concrete Paving (including 10% for re-measure on site). Rate to include: excavation, shaping & leveling . All as per General Specifications document",298,"m²",null,"m²",328]
[null,"b.","Supply, deliver & install 100mm thick Exposed Aggregate Path; including Mesh Ref 311 (according to Manufacturer's Specifications); 25MPa; Artevia Spec Sheet; Chryso Spec Sheet & General Specification for Exposed Aggregate Concrete Paving (including 20% for re-measure on site). Rate to include: excavation, shaping & leveling . All as per General Specifications document",62,"m²",null,"m²",69]
[null,null,"Refer to: General Specification for Exposed Aggregate Concrete Paving"]
[]
[null,"4.2","JOINTS"]
[null,"a.","The contractor to provide all necessary machinery, labour, transport and materials for the supply and installation of the new joints as per hard surfaces as specified. "]
[null,"b.","Supply, deliver & install 6mm saw-cut joints; Spectrem 800 (minimum 2m apart) - as per General Specifications document (or similar approved)",{"$nulls":3},"Lm",200]
[null,"c.","Supply, deliver & install 8mm expansion joints; TAMMSFLEX 75 (minimum 8m apart)  - as per General Specifications document (or similar approved)",{"$nulls":3},"Lm",55]
[null,null,"Refer to: General Specification for Exposed Aggregate Concrete Paving"]
[]
[null,"4.3","BUILT SEATING WALL"]
[null,"a.","Supply & deliver Corobrik Silvergrey Slab Smooth Facebrick",{"$nulls":3},"no.",110]
[null,"b.","Supply & deliver Corobrik Silvergrey Satin Solid Facebrick",{"$nulls":3},"no.",114]
[null,"c.","Supply & deliver Corobrik Silvergrey Satin Slimline Facebrick",{"$nulls":3},"no.",344]
[null,"d.","Foundation and labour for construction as per Typical Built Seating wall Detail (Refer to IS-3758-602 LANDSCAPE SKETCHPLAN \nCIVIL EXTERNAL WORKS)",{"$nulls":3},"Lm",9]
[]
[null,"4.4","UNDERGROUND SERVICES - PROVISION FOR PVC SLEEVES (For future irrigation and electrical works)"]
[null,"a.","All sleeves to include draw wires and caps."]
[null,"b.","The Contractor shall allow for the supply and installation of approved 1.5mm galvanised draw wires and PVC end Caps."]
[null,"c.","Supply, deliver & install Ribbed 110mm diam. sleeves - to depth of 450mm",{"$nulls":3},"Lm",110]
[null,"d.","Supply, deliver & install 60mm diam. HDPE sleeves - to depth of 450mm",{"$nulls":3},"Lm",63]
[null,"e.","Supply, deliver & install 20mm diam. HDPE sleeves - to depth of 450mm",{"$nulls":3},"Lm",26]
[]
[null,"4.5","FURNITURE"]
[null,null,"Refer to drawing: IS-3758-603"]
[null,"a.","The contractor to provide all necessary machinery, labour, transport and materials for the supply and installation of the new freestanding benches and Drinking Foantain connected to the existing tap as shown on Plan and Detail."]
[null,"b.","Supply, deliver & install 200x400x1175mm Exposed aggregate WilsonStone Clifton Drinking Fountain; Colour: Sandstone.  Rate to include irrigation valve box, and grass blocks, excavation, shaping & leveling .  ",{"$nulls":3},"no.",1]
[null,"c.","Supply, deliver & install 1800x100x450mm Exposed aggregate WilsonStone The Turin Exposed 1800 Bench with polished top.  (Exposed Turin Bench - Ferro Exposed or similar.)",{"$nulls":3},"no.",2]
[null,null,"Proposed supplier or similar approved::\nWilsonStone:\nLauren da Silva\n082 327 9603 / lauren@wilsonstone.co.za    "]
[]
[null,null,"TOTAL FOR HARD LANDSCAPING: "]
[]
[]
[null,"5.","HAND-WATERING & EQUIPMENT - PART 2"]
[]
[null,"5.1","UNDERGROUND SERVICES - PROVISION FOR PVC SLEEVES"]
[null,"a.","All sleeves to include draw wires and caps."]
[null,"b.","The Contractor shall allow for the supply and installation of approved 1.5mm galvanised draw wires and PVC end Caps."]
[null,"c.","Supply, deliver & install Ribbed 110mm diam. sleeves - to depth of 450mm",{"$nulls":3},"Lm",32]
[null,"d.","Supply, deliver & install 60mm diam. sleeves - to depth of 450mm",{"$nulls":3},"Lm",32]
[]
[null,"5.2","ADDITIONAL HOSES (Main House)"]
[null,"a.","20MM X 100M DRAGLINE M-DUTY BLACK",{"$nulls":3},"no.",1]
[null,"b.","3/4in SNAP ON HOSE CONNECTOR",{"$nulls":3},"no.",1]
[null,"c.","SNAP ON SPRAY NOZZLE",{"$nulls":3},"no.",1]
[null,"d.","20MM X 600MM DRAGLINE STAND",{"$nulls":3},"no.",1]
[null,"e.","AQUA PLASTIC SPRINKLER FC3/4\"-3.57 X2.38 BLUE/YELL",{"$nulls":3},"no.",1]
[]
[null,null,"TOTAL FOR HAND-WATERING & EQUIPMENT: "]
[]
[]
[]
[null,"6.","MAINTENANCE - PART 2"]
[]
[null,"6.1","MAINTENANCE for new areas"]
[null,"a.","Provision for additional maintenance for new lawn area",{"$f":"SUM(H117)","v":162},"m²",null,"mnth",6]
[null,"b.","Provision for additional maintenance for new seeding area",{"$f":"SUM(H133)","v":{"v":1300,"d":"1,300"}},"m²",null,"mnth",6]
[null,"c.","TOTAL Top-up Vitasoil for lawn [75ml/m²]: rate must include cultivation into soil",{"$f":"SUM(D220)","v":162},"m²",null,"l",46]
[]
[null,null,"TOTAL FOR MAINTENANCE:"]
[]
[]
[null,null,"TOTAL FOR PART 2 (To be carried forward to Summary Page)"]